fUSD/lending_fUSD_20260401
["ID","MTS","AMOUNT","RATE_DAILY","PERIOD"]
[419220005,1775023855634,-500.0,0.00026767,2]
[419220006,1775023855644,-621.78829552,0.00026772,2]
[419220007,1775023855654,-200.0,0.00026774,2]
[419220008,1775023855664,-251.11897888,0.00026774,2]
[419220009,1775023855673,-1069.23467738,0.00026774,2]
[419220010,1775023855682,-322.93,0.000269,15]
[419220011,1775023855691,-800.0,0.00026986,120]
[419220012,1775023855701,-800.0,0.00026986,120]
[419220013,1775023855710,-200.0,0.00027,3]
[419220014,1775023855721,-20000.0,0.00027,2]
[419220015,1775023855730,-551.56854623,0.00027,2]
[419220016,1775023855740,-150.0,0.00027,2]
[419220017,1775023855750,-426.08733496,0.00027,2]
[419220018,1775023855760,-894.0,0.00027,2]
[419220019,1775023855771,-1341.32774423,0.00027,2]
[419220020,1775023855781,-4398.67305915,0.00027,2]
[419220021,1775023855790,-1225.62658029,0.00027,2]
[419220022,1775023855799,-513.0,0.00027,2]
[419220023,1775023855809,-350.0,0.00027172,2]
[419220024,1775023855818,-150.0,0.00027185,2]
[419220025,1775023855828,-10233.4723,0.00027297,2]
[419220026,1775023855837,-285.40491142,0.000273,30]
[419220027,1775023855847,-285.40491141,0.000273,30]
[419220028,1775023855857,-200.0,0.00027322,2]
[419220029,1775023855867,-260.4103811,0.00027322,2]
[419220030,1775023855876,-1108.79636044,0.00027322,2]
[419220031,1775023855886,-1115.0,0.00027322,2]
[419220032,1775023855896,-156.74,0.00027397,2]
[419220033,1775023855905,-450.66053804,0.00027397,2]
[419220034,1775023855915,-1000.0,0.00027397,120]
[419220035,1775023855924,-236.26,0.00027397,2]
[419220036,1775023855934,-1000.0,0.00027397,20]
[419220037,1775023855944,-323.37602213,0.00027397,2]
[419220038,1775023855953,-151.0,0.00027397,2]
[419220039,1775023855962,-432.594449,0.00027397,2]
[419220040,1775023855972,-432.594449,0.00027397,2]
[419220041,1775023855982,-432.594449,0.00027397,2]
[419220042,1775023855992,-432.594449,0.00027397,2]
[419220043,1775023856002,-741.356026,0.00027397,2]
[419220044,1775023856011,-741.356026,0.00027397,2]
[419220045,1775023856020,-741.356026,0.00027397,2]
[419220046,1775023856030,-741.356026,0.00027397,2]
[419220047,1775023856039,-300.0,0.00027397,2]
[419220048,1775023856048,-2968.75711,0.00027397,2]
[419220049,1775023856056,-2968.75711,0.00027397,2]
[419220050,1775023856065,-2968.75711,0.00027397,2]
[419220051,1775023856074,-2968.75711,0.00027397,2]
[419220052,1775023856083,-2968.75711,0.00027397,2]
[419220053,1775023856093,-2968.75711,0.00027397,2]
[419220054,1775023856103,-2968.75711,0.00027397,2]
[419220055,1775023856112,-2968.75711,0.00027397,2]
[419220056,1775023856122,-500.0,0.00027499,120]
[419220057,1775023856132,-500.0,0.00027499,120]
[419220058,1775023856142,-3815.3887,0.000275,67]
[419220059,1775023856153,-2000.0,0.000275,2]
[419220060,1775023856163,-180.02150181,0.00027516,2]
[419220061,1775023856172,-883.0,0.00027764,5]
[419220062,1775023856183,-203.5320316,0.00027777,120]
[419220063,1775023856194,-200.0,0.0002787,2]
[419220064,1775023856206,-270.0455652,0.0002787,2]
[419220065,1775023856215,-500.0,0.00028,45]
[419220066,1775023856225,-500.0,0.00028,45]
[419220067,1775023856234,-500.0,0.00028,45]
[419220068,1775023856243,-500.0,0.00028,45]
[419220069,1775023856252,-500.0,0.00028,45]
[419220070,1775023856262,-1214.29,0.00028007,2]
[419220071,1775023856271,-376.79746068,0.00028146,120]
[419220072,1775023856281,-280.03725112,0.00028418,2]
[419220073,1775023856290,-150.0,0.00028544,2]
[419220074,1775023856299,-1115.0,0.00028688,5]
[419220075,1775023856309,-657.0,0.00028734,2]
[419220076,1775023856317,-500.0,0.00028767,120]
[419220077,1775023856327,-500.0,0.00028767,120]
[419220078,1775023856335,-500.0,0.00028767,120]
[419220079,1775023856345,-500.0,0.00028767,120]
[419220080,1775023856355,-500.0,0.00028767,120]
[419220081,1775023856364,-500.0,0.00028767,120]
[419220082,1775023856373,-204.78266092,0.00028767,120]
[419220083,1775023856383,-4893.8443,0.000289,72]
[419220084,1775023856392,-150.0,0.00028911,50]
[419220085,1775023856403,-150.0,0.00028953,50]
[419220086,1775023856412,-290.39862941,0.00028966,2]
[419220087,1775023856422,-150.0,0.00028995,50]
[419220088,1775023856432,-1754.74264419,0.00029,2]
[419220089,1775023856443,-1444.0,0.00029041,120]
[419220090,1775023856452,-250.0,0.00029064,12]
[419220091,1775023856461,-505.0,0.00029164,15]
[419220092,1775023856471,-2000.0,0.000293,2]
[419220093,1775023856482,-30000.0,0.00029396,2]
[419220094,1775023856491,-256.28188192,0.00029462,2]
[419220095,1775023856500,-461.30738746,0.00029462,2]
[419220096,1775023856510,-377.87250445,0.00029462,2]
[419220097,1775023856519,-644.79446246,0.00029511,2]
[419220098,1775023856529,-301.1433787,0.00029514,2]
[419220099,1775023856539,-500.0,0.00029562,2]
[419220100,1775023856549,-622.761,0.00029582,2]
[419220101,1775023856559,-1045.0,0.00029582,2]
[419220102,1775023856568,-1351.985,0.00029582,2]
[419220103,1775023856578,-1263.0,0.00029582,2]
[419220104,1775023856587,-150.351,0.00029582,2]
[419220105,1775023856597,-1229.472,0.00029582,2]
[419220106,1775023856606,-933.398,0.00029582,2]
[419220107,1775023856615,-6016.0,0.00029582,2]
[419220108,1775023856624,-415.0,0.00029582,2]
[419220109,1775023856633,-825.0,0.00029751,60]
[419220110,1775023856642,-500.0,0.00029856,120]
[419220111,1775023856652,-150.0,0.00029951,50]
[419220112,1775023856662,-150.0,0.00029971,2]
[419220113,1775023856672,-347834.5127211,0.00029999,120]
[419220114,1775023856681,-2968.75711,0.00029999,7]
[419220115,1775023856690,-2968.75711,0.00029999,7]
[419220116,1775023856700,-2968.75711,0.00029999,7]
[419220117,1775023856709,-2968.75711,0.00029999,7]
[419220118,1775023856719,-151.0,0.00029999,7]
[419220119,1775023856729,-151.0,0.00029999,7]
[419220120,1775023856739,-151.0,0.00029999,7]
[419220121,1775023856748,-301.986434,0.00029999,7]
[419220122,1775023856757,-342.803973,0.00029999,7]
[419220123,1775023856766,-151.0,0.00029999,7]
[419220124,1775023856775,-342.803973,0.00029999,7]
[419220125,1775023856783,-151.0,0.00029999,7]
[419220126,1775023856792,-342.803973,0.00029999,7]
[419220127,1775023856802,-151.0,0.00029999,7]
[419220128,1775023856811,-342.803973,0.00029999,7]
[419220129,1775023856820,-363.51560483,0.0003,30]
[419220130,1775023856829,-200.0,0.0003,3]
[419220131,1775023856839,-1134.56811026,0.0003,120]
[419220132,1775023856848,-331.10908906,0.0003,120]
[419220133,1775023856857,-160.0,0.0003,120]
[419220134,1775023856867,-160.0,0.0003,120]
[419220135,1775023856877,-160.0,0.0003,30]
[419220136,1775023856887,-500.0,0.0003,2]
[419220137,1775023856896,-1115.0,0.00030123,5]
[419220138,1775023856906,-150.0,0.00030136,20]
[419220139,1775023856916,-150.0,0.00030136,20]
[419220140,1775023856926,-1000.0,0.00030137,120]
[419220141,1775023856935,-236.26,0.00030137,2]
[419220142,1775023856945,-182.688209,0.00030137,7]
[419220143,1775023856954,-182.688209,0.00030137,7]
[419220144,1775023856964,-182.688209,0.00030137,7]
[419220145,1775023856974,-182.688209,0.00030137,7]
[419220146,1775023856983,-1981.80648635,0.00030137,120]
[419220147,1775023856993,-150.01,0.00030222,50]
[419220148,1775023857002,-211.32,0.00030265,50]
[419220149,1775023857012,-232.12,0.00030272,60]
[419220150,1775023857023,-150.0,0.00030288,50]
[419220151,1775023857033,-150.112,0.00030299,2]
[419220152,1775023857042,-150.0,0.00030299,2]
[419220153,1775023857052,-150.137,0.00030299,2]
[419220154,1775023857253,-150.0,0.00030299,2]
[419220155,1775023857302,-193.433,0.00030299,2]
[419220156,1775023857312,-166.012,0.00030299,2]
[419220157,1775023857322,-250.0,0.00030299,2]
[419220158,1775023857332,-214.791,0.00030299,2]
[419220159,1775023857341,-239.15,0.00030299,2]
[419220160,1775023857351,-179.0,0.00030299,2]
[419220161,1775023857361,-6277.1354,0.000304,77]
[419220162,1775023857370,-433.72,0.00030411,120]
[419220163,1775023857380,-12612.0,0.00030499,2]
[419220164,1775023857389,-228.95384873,0.00030685,2]
[419220165,1775023857399,-2000.0,0.000307,2]
[419220166,1775023857409,-160.0,0.000309,120]
[419220167,1775023857418,-160.0,0.000309,120]
[419220168,1775023857429,-150.0,0.00030907,50]
[419220169,1775023857439,-211.16,0.00030947,50]
[419220170,1775023857448,-868.0,0.00030996,5]
[419220171,1775023857458,-341.90321541,0.00031,120]
[419220172,1775023857468,-403.32419214,0.00031013,2]
[419220173,1775023857477,-657.0,0.00031193,2]
[419220174,1775023857486,-1571.0,0.00031397,3]
[419220175,1775023857496,-320.0,0.00031397,3]
[419220176,1775023857505,-2809.0,0.00031399,3]
[419220177,1775023857514,-2809.0,0.00031399,3]
[419220178,1775023857523,-2809.0,0.000314,3]
[419220179,1775023857533,-152.0,0.00031408,3]
[419220180,1775023857542,-150.0,0.0003147,2]
[419220181,1775023857552,-1166.36,0.00031621,2]
[419220182,1775023857563,-1115.0,0.00031629,5]
[419220183,1775023857572,-211.16,0.0003163,50]
[419220184,1775023857583,-150.0,0.00031665,50]
[419220185,1775023857592,-162.0,0.0003171,3]
[419220186,1775023857601,-526.0,0.00031719,3]
[419220187,1775023857611,-2809.0,0.0003172,3]
[419220188,1775023857620,-1571.0,0.0003172,3]
[419220189,1775023857630,-2798.0,0.0003172,3]
[419220190,1775023857640,-580.0,0.0003172,3]
[419220191,1775023857650,-189.60982021,0.00031766,2]
[419220192,1775023857661,-160.0,0.000318,120]
[419220193,1775023857671,-8051.4267,0.000318,82]
[419220194,1775023857681,-505.0,0.0003184,18]
[419220195,1775023857690,-150.0,0.00031863,50]
[419220196,1775023857700,-1350.0,0.00031935,2]
[419220197,1775023857710,-1350.0,0.00031935,2]
[419220198,1775023857719,-1204.0,0.00031935,2]
[419220199,1775023857730,-167.63309835,0.00032,120]
[419220200,1775023857740,-1530.51664844,0.00032,120]
[419220201,1775023857750,-199.91744557,0.00032,120]
[419220202,1775023857759,-169.62268548,0.00032,120]
[419220203,1775023857769,-167.98282313,0.00032,120]
[419220204,1775023857779,-184.63982661,0.00032,120]
[419220205,1775023857788,-192.59859553,0.00032,120]
[419220206,1775023857797,-223.9430648,0.00032,120]
[419220207,1775023857807,-179.7765907,0.00032,120]
[419220208,1775023857817,-160.0,0.00032,3]
[419220209,1775023857828,-1571.0,0.0003204,3]
[419220210,1775023857837,-2814.0,0.0003204,3]
[419220211,1775023857847,-825.0,0.00032189,60]
[419220212,1775023857857,-363.51560483,0.00032222,30]
[419220213,1775023857867,-1300.0,0.00032243,2]
[419220214,1775023857876,-1300.0,0.00032243,2]
[419220215,1775023857886,-1298.0,0.00032243,2]
[419220216,1775023857896,-668.65185757,0.0003225,2]
[419220217,1775023857906,-2000.0,0.000323,7]
[419220218,1775023857916,-211.16,0.00032313,50]
[419220219,1775023857925,-374.99530866,0.00032329,7]
[419220220,1775023857936,-2809.0,0.0003236,11]
[419220221,1775023857945,-162.0,0.0003236,11]
[419220222,1775023857955,-250.0,0.0003241,24]
[419220223,1775023857964,-152.0,0.00032563,4]
[419220224,1775023857974,-621.0,0.00032582,2]
[419220225,1775023857985,-1045.0,0.00032582,2]
[419220226,1775023857995,-1346.0,0.00032582,2]
[419220227,1775023858004,-1263.0,0.00032582,2]
[419220228,1775023858014,-150.0,0.00032582,2]
[419220229,1775023858024,-1216.0,0.00032582,2]
[419220230,1775023858034,-925.0,0.00032582,2]
[419220231,1775023858044,-6016.0,0.00032582,2]
[419220232,1775023858053,-415.0,0.00032582,2]
[419220233,1775023858063,-500.0,0.00032599,120]
[419220234,1775023858074,-500.0,0.00032599,120]
[419220235,1775023858084,-161.0,0.00032679,11]
[419220236,1775023858094,-1571.0,0.00032679,11]
[419220237,1775023858103,-299.04270038,0.000327,2]
[419220238,1775023858113,-299.04270032,0.000327,2]
[419220239,1775023858122,-299.04270032,0.000327,2]
[419220240,1775023858131,-299.04270032,0.000327,2]
[419220241,1775023858141,-299.04270032,0.000327,2]
[419220242,1775023858151,-299.04270032,0.000327,2]
[419220243,1775023858161,-299.04270032,0.000327,2]
[419220244,1775023858170,-299.04270032,0.000327,2]
[419220245,1775023858180,-299.04270032,0.000327,2]
[419220246,1775023858190,-299.04270032,0.000327,2]
[419220247,1775023858199,-299.04270032,0.000327,2]
[419220248,1775023858209,-299.04270032,0.000327,2]
[419220249,1775023858219,-299.04270032,0.000327,2]
[419220250,1775023858231,-2215.66368021,0.000328,120]
[419220251,1775023858241,-150.0,0.00032812,50]
[419220252,1775023858251,-150.0,0.00032819,50]
[419220253,1775023858261,-300.0,0.00032876,120]
[419220254,1775023858271,-300.0,0.00032876,120]
[419220255,1775023858280,-209.51487984,0.00032876,120]
[419220256,1775023858290,-500.0,0.00032876,2]
[419220257,1775023858300,-455.39169136,0.00032876,2]
[419220258,1775023858310,-385.49196168,0.00032876,2]
[419220259,1775023858319,-359.13035198,0.00032876,2]
[419220260,1775023858330,-424.44556104,0.00032876,2]
[419220261,1775023858339,-500.0,0.00032876,2]
[419220262,1775023858349,-368.80116717,0.00032876,2]
[419220263,1775023858358,-500.0,0.00032876,2]
[419220264,1775023858368,-500.0,0.00032876,2]
[419220265,1775023858378,-442.08410442,0.00032876,2]
[419220266,1775023858388,-551.54125544,0.00032876,2]
[419220267,1775023858398,-179.76811881,0.00032876,2]
[419220268,1775023858408,-170.90675869,0.00032876,2]
[419220269,1775023858419,-501.81718229,0.00032876,2]
[419220270,1775023858432,-350.0,0.00032876,2]
[419220271,1775023858442,-236.26,0.00032877,2]
[419220272,1775023858452,-196.226046,0.00032877,7]
[419220273,1775023858461,-196.226046,0.00032877,7]
[419220274,1775023858471,-196.226046,0.00032877,7]
[419220275,1775023858482,-196.226046,0.00032877,7]
[419220276,1775023858492,-196.226046,0.00032877,7]
[419220277,1775023858502,-196.226046,0.00032877,7]
[419220278,1775023858514,-196.226046,0.00032877,7]
[419220279,1775023858524,-196.226046,0.00032877,7]
[419220280,1775023858534,-196.226046,0.00032877,7]
[419220281,1775023858548,-196.226046,0.00032877,7]
[419220282,1775023858558,-196.226046,0.00032877,7]
[419220283,1775023858568,-196.226046,0.00032877,7]
[419220284,1775023858578,-3671.677389,0.00032877,7]
[419220285,1775023858588,-3671.677389,0.00032877,7]
[419220286,1775023858598,-3671.677389,0.00032877,7]
[419220287,1775023858608,-3671.677389,0.00032877,7]
[419220288,1775023858619,-3671.677389,0.00032877,7]
[419220289,1775023858628,-3671.677389,0.00032877,7]
[419220290,1775023858638,-3671.677389,0.00032877,7]
[419220291,1775023858648,-3671.677389,0.00032877,7]
[419220292,1775023858658,-3671.677389,0.00032877,7]
[419220293,1775023858668,-3671.677389,0.00032877,7]
[419220294,1775023858678,-3671.677389,0.00032877,7]
[419220295,1775023858688,-3671.677389,0.00032877,7]
[419220296,1775023858698,-511.966398,0.00032877,7]
[419220297,1775023858708,-511.966398,0.00032877,7]
[419220298,1775023858718,-511.966398,0.00032877,7]
[419220299,1775023858729,-511.966398,0.00032877,7]
[419220300,1775023858739,-511.966398,0.00032877,7]
[419220301,1775023858750,-511.966398,0.00032877,7]
[419220302,1775023858760,-511.966398,0.00032877,7]
[419220303,1775023858772,-511.966398,0.00032877,7]
[419220304,1775023858782,-511.966398,0.00032877,7]
[419220305,1775023858792,-511.966398,0.00032877,7]
[419220306,1775023858803,-511.966398,0.00032877,7]
[419220307,1775023858813,-511.966398,0.00032877,7]
[419220308,1775023858823,-7126.81,0.000329,30]
[419220309,1775023858833,-7730.48,0.000329,30]
[419220310,1775023858843,-10141.87,0.000329,30]
[419220311,1775023858853,-2809.0,0.00032908,11]
[419220312,1775023858863,-1000.0,0.0003297,2]
[419220313,1775023858874,-1188.51483974,0.0003297,2]
[419220314,1775023858884,-500.0,0.0003297,2]
[419220315,1775023858895,-762.87386502,0.0003297,2]
[419220316,1775023858904,-211.16,0.00032995,50]
[419220317,1775023858914,-1243.57659106,0.00032998,30]
[419220318,1775023858924,-167.63309835,0.00033,120]
[419220319,1775023858935,-1530.51664844,0.00033,120]
[419220320,1775023858944,-199.91744557,0.00033,120]
[419220321,1775023858955,-169.62268548,0.00033,120]
[419220322,1775023858964,-167.98282313,0.00033,120]
[419220323,1775023858977,-184.63982661,0.00033,120]
[419220324,1775023858986,-192.59859553,0.00033,120]
[419220325,1775023858996,-1506.05218536,0.00033,120]
[419220326,1775023859005,-200.0,0.00033,3]
[419220327,1775023859015,-999.5299672,0.00033,2]
[419220328,1775023859025,-174.44447406,0.00033,60]
[419220329,1775023859034,-219.59057452,0.00033,120]
[419220330,1775023859044,-473.80260708,0.00033,30]
[419220331,1775023859054,-2000.0,0.00033,2]
[419220332,1775023859064,-566.297681,0.00033,14]
[419220333,1775023859074,-200.0,0.00033,10]
[419220334,1775023859084,-172.0,0.00033,14]
[419220335,1775023859094,-1192.41067818,0.00033033,2]
[419220336,1775023859106,-150.0,0.00033042,50]
[419220337,1775023859115,-150.0,0.00033043,2]
[419220338,1775023859125,-1300.0,0.00033055,2]
[419220339,1775023859135,-1300.0,0.00033055,2]
[419220340,1775023859145,-1242.0,0.00033055,2]
[419220341,1775023859155,-150.0,0.00033089,50]
[419220342,1775023859165,-300.0,0.000331,10]
[419220343,1775023859175,-1115.0,0.0003321,5]
[419220344,1775023859184,-500.0,0.00033224,120]
[419220345,1775023859193,-150.0,0.00033299,2]
[419220346,1775023859203,-150.0,0.00033299,2]
[419220347,1775023859213,-150.0,0.00033299,2]
[419220348,1775023859223,-150.0,0.00033299,2]
[419220349,1775023859234,-10327.2382,0.000333,87]
[419220350,1775023859244,-234.08,0.000334,10]
[419220351,1775023859254,-7730.48,0.000334,30]
[419220352,1775023859264,-10141.87,0.000334,30]
[419220353,1775023859274,-205.74,0.000334,10]
[419220354,1775023859284,-151.0,0.00033411,5]
[419220355,1775023859294,-1223.21238259,0.000335,2]
[419220356,1775023859307,-500.0,0.00033543,120]
[419220357,1775023859318,-500.0,0.00033543,120]
[419220358,1775023859329,-657.0,0.00033652,2]
[419220359,1775023859339,-211.16,0.00033678,50]
[419220360,1775023859660,-152.0,0.00033718,5]
[419220361,1775023859682,-2809.0,0.00033771,11]
[419220362,1775023859692,-150.0,0.00033775,50]
[419220363,1775023859701,-7730.48,0.000338,30]
[419220364,1775023859711,-10141.87,0.000338,30]
[419220365,1775023859721,-151.0,0.000338,7]
[419220366,1775023859731,-151.0,0.000338,7]
[419220367,1775023859741,-262.969685,0.000338,7]
[419220368,1775023859750,-1530.51664844,0.000339,120]
[419220369,1775023859760,-199.91744557,0.000339,120]
[419220370,1775023859770,-169.62268548,0.000339,120]
[419220371,1775023859780,-167.98282313,0.000339,120]
[419220372,1775023859789,-184.63982661,0.000339,120]
[419220373,1775023859799,-192.59859553,0.000339,120]
[419220374,1775023859809,-2000.0,0.000339,7]
[419220375,1775023859818,-1444.0,0.00033973,120]
[419220376,1775023859828,-3571.85,0.00033973,2]
[419220377,1775023859837,-250.0,0.00033978,33]
[419220378,1775023859847,-2791.906,0.00033993,37]
[419220379,1775023859858,-3977.79,0.00034,7]
[419220380,1775023859867,-14179.92781205,0.00034,4]
[419220381,1775023859878,-7126.81,0.00034,30]
[419220382,1775023859889,-261.07974608,0.00034,120]
[419220383,1775023859898,-151.0,0.00034,7]
[419220384,1775023859908,-151.0,0.00034,7]
[419220385,1775023859919,-151.0,0.00034,7]
[419220386,1775023859928,-81751.4296601,0.0003406,2]
[419220387,1775023859938,-151.0,0.0003406,7]
[419220388,1775023859948,-151.0,0.0003406,7]
[419220389,1775023859957,-151.0,0.0003406,7]
[419220390,1775023859967,-741.356026,0.0003406,7]
[419220391,1775023859977,-741.356026,0.0003406,7]
[419220392,1775023859987,-741.356026,0.0003406,7]
[419220393,1775023859996,-741.356026,0.0003406,7]
[419220394,1775023860006,-7730.48,0.000342,30]
[419220395,1775023860015,-10141.87,0.000342,30]
[419220396,1775023860028,-157.270965,0.000342,7]
[419220397,1775023860040,-157.270965,0.000342,7]
[419220398,1775023860050,-157.270965,0.000342,7]
[419220399,1775023860060,-157.270965,0.000342,7]
[419220400,1775023860070,-433.72,0.00034212,120]
[419220401,1775023860080,-211.16,0.00034361,50]
[419220402,1775023860090,-426.0,0.00034373,30]
[419220403,1775023860101,-153.0,0.00034373,30]
[419220404,1775023860111,-879.0,0.00034373,30]
[419220405,1775023860120,-1338.0,0.00034408,30]
[419220406,1775023860131,-4385.0,0.00034408,30]
[419220407,1775023860140,-1219.0,0.00034408,30]
[419220408,1775023860150,-498.0,0.00034408,30]
[419220409,1775023860160,-232.12,0.00034408,60]
[419220410,1775023860170,-151.0,0.00034411,5]
[419220411,1775023860179,-150.0,0.00034418,50]
[419220412,1775023860189,-363.51560483,0.00034444,30]
[419220413,1775023860199,-1748.03076578,0.0003449,2]
[419220414,1775023860209,-433.0,0.0003449,10]
[419220415,1775023860219,-174.51902717,0.000345,120]
[419220416,1775023860229,-5000.0,0.000345,14]
[419220417,1775023860239,-505.0,0.00034515,20]
[419220418,1775023860248,-1199.20597015,0.00034599,30]
[419220419,1775023860258,-7730.48,0.000346,30]
[419220420,1775023860268,-10141.87,0.000346,30]
[419220421,1775023860278,-825.0,0.00034627,90]
[419220422,1775023860288,-1000.0,0.0003467,2]
[419220423,1775023860298,-500.0,0.0003467,2]
[419220424,1775023860308,-150.0,0.00034696,2]
[419220425,1775023860317,-500.0,0.00034699,120]
[419220426,1775023860327,-13246.3292,0.000347,92]
[419220427,1775023860336,-150.0,0.00034731,50]
[419220428,1775023860346,-1500.0,0.00034795,2]
[419220429,1775023860355,-1115.0,0.00034871,5]
[419220430,1775023860365,-152.0,0.00034872,6]
[419220431,1775023860375,-1962.89831621,0.0003488,120]
[419220432,1775023860384,-1014.55,0.00034891,120]
[419220433,1775023860394,-657.52469675,0.000349,120]
[419220434,1775023860403,-500.0,0.00034957,120]
[419220435,1775023860413,-437.70802113,0.00034989,2]
[419220436,1775023860423,-151.0,0.00034997,14]
[419220437,1775023860432,-1530.51664844,0.00035,120]
[419220438,1775023860441,-199.91744557,0.00035,120]
[419220439,1775023860450,-169.62268548,0.00035,120]
[419220440,1775023860460,-184.63982661,0.00035,120]
[419220441,1775023860469,-192.59859553,0.00035,120]
[419220442,1775023860480,-150.0,0.00035,2]
[419220443,1775023860490,-163.931,0.00035,2]
[419220444,1775023860499,-544.03644772,0.00035,30]
[419220445,1775023860509,-3935.10702431,0.00035,30]
[419220446,1775023860519,-6485.49701159,0.00035,30]
[419220447,1775023860528,-340000.0,0.00035,4]
[419220448,1775023860537,-1936.03153159,0.00035,2]
[419220449,1775023860547,-2292.55777083,0.00035,30]
[419220450,1775023860556,-501.30651736,0.00035,7]
[419220451,1775023860566,-150.0,0.00035,60]
[419220452,1775023860575,-30127.02850977,0.00035,15]
[419220453,1775023860585,-7730.48,0.00035,30]
[419220454,1775023860595,-10141.87,0.00035,30]
[419220455,1775023860605,-501.0,0.00035,2]
[419220456,1775023860614,-500.0,0.00035,60]
[419220457,1775023860623,-500.0,0.00035,60]
[419220458,1775023860632,-500.0,0.00035,60]
[419220459,1775023860641,-500.0,0.00035,60]
[419220460,1775023860651,-993.10976,0.00035,30]
[419220461,1775023860661,-182.688209,0.00035,7]
[419220462,1775023860670,-182.688209,0.00035,7]
[419220463,1775023860680,-182.688209,0.00035,7]
[419220464,1775023860690,-432.594449,0.00035,7]
[419220465,1775023860700,-182.688209,0.00035,7]
[419220466,1775023860709,-432.594449,0.00035,7]
[419220467,1775023860719,-432.594449,0.00035,7]
[419220468,1775023860729,-432.594449,0.00035,7]
[419220469,1775023860739,-177.300024,0.00035,7]
[419220470,1775023860749,-177.300024,0.00035,7]
[419220471,1775023860759,-177.300024,0.00035,7]
[419220472,1775023860768,-177.300024,0.00035,7]
[419220473,1775023860778,-1002.59589747,0.00035,7]
[419220474,1775023860788,-200.0,0.00035,3]
[419220475,1775023860799,-211.16,0.00035043,50]
[419220476,1775023860808,-500.0,0.00035097,120]
[419220477,1775023860818,-500.0,0.00035097,120]
[419220478,1775023860827,-250.0,0.00035103,37]
[419220479,1775023860837,-151.0,0.00035118,14]
[419220480,1775023860847,-500.0,0.00035136,120]
[419220481,1775023860856,-500.0,0.00035136,120]
[419220482,1775023860865,-900.8171088,0.00035136,120]
[419220483,1775023860875,-500.0,0.00035136,120]
[419220484,1775023860884,-474.5894122,0.00035136,120]
[419220485,1775023860894,-651.3738846,0.00035136,120]
[419220486,1775023860904,-161.7389355,0.00035136,120]
[419220487,1775023860914,-375.0,0.00035136,120]
[419220488,1775023860925,-500.0,0.00035136,120]
[419220489,1775023860936,-500.0,0.00035136,120]
[419220490,1775023860947,-509.8086704,0.00035136,120]
[419220491,1775023860958,-839.0889932,0.00035136,120]
[419220492,1775023860968,-500.0,0.00035136,120]
[419220493,1775023860978,-776.3392059,0.00035136,120]
[419220494,1775023860993,-852.0946863,0.00035136,120]
[419220495,1775023861003,-250.0,0.00035136,120]
[419220496,1775023861013,-993.10976,0.000352,30]
[419220497,1775023861023,-1014.55,0.00035217,120]
[419220498,1775023861032,-52316.99326,0.00035281,7]
[419220499,1775023861041,-20629.80019668,0.00035281,7]
[419220500,1775023861051,-15621.26015249,0.00035281,7]
[419220501,1775023861061,-2500.0,0.000353,14]
[419220502,1775023861070,-500.0,0.00035313,2]
[419220503,1775023861080,-500.0,0.00035352,120]
[419220504,1775023861090,-521.10158946,0.00035352,120]